Workbook

Sheet User Manual
A1: Ordinal Priority Approach (OPA) in Multiple-Attribute Decision-Making (www.ordinalpriorityapproach.com) | K1: How can you solve your problem using this file?
D3: "Again the garden has got the glitter of Spring: The nightingale hears good news, for the rose is come", Hafez Shirazi | L3: Step 1: Please go to sheet "Solver" and click on Step 1. | S3: Please enter the number of experts, criteria and alternatives.
A4: This file can help you to solve multiple-attribute decision-making problems using the Ordinal Priority Approach (OPA) after a few clicks. Before using the OPA Solver v1.00, you should check the following requirements on your system:
A7: 1- Please enable "Trust Access" using the following address: Windows: 1. Click the "File" tab. 2. Click on "Options". 3. Click "Trust Center", and then click "Trust Center Settings". 4. "Macro settings" 5. Select the "Trust access to the VBA project object model" check box, and then click OK
A12: Mac: 1. Click the "Excel" tab 2. Click on "Preferences" 3. Click on "Security" 4. Select the "Trust access to the VBA project object model" check box
A15: 2- Please install the "Solver" on your Excel. You can install the Solver with clicking on "Install Solver". It should be noted that "Trust Access" should be activated before installing "Solver". | L15: Please enter your input data in this area
A18: Note1: This file cannot solve large-scale problems due to Excel limitations on the number of constraints. Also, Tie ranks for the alternatives cannot be entered but Tie ranks for criteria and experts are allowed. If you face any problem regarding the above requirements, please contact with info@ordinalpriorityapproach.com
A22: Note 2: Before using the Solve sheet, please see the examples 1 to 3 carefully. Example 1 is single decision-making. Example 2 is group decision-making with incomplete data and Tie ranks in criteria. Example 3 is calculating the weight of criteria only. After that, please go to "OPA Solver v1.00" sheet and solve your problem.
A26: Note 3: The Model and Equations of the OPA for using in academic papers are provided in the Word Document. You can Double Click on the icon and save it for your use. Please check www.ordinalpriorityapproach.com for new updates and studying learning materials.
L27: Step 2: Please click on Step 2 | S27: Enter the degree of the preference (See OPA paper for more information) | AB27: Results are ready
A29: Copyright © 2021 by Amin Mahmoudi All rights reserved (Free and open-source)
A31: References
A32: Ataei, Y., Mahmoudi, A., Feylizadeh, M. R., & Li, D. F. (2020). Ordinal Priority Approach (OPA) in Multiple Attribute Decision-Making. Applied Soft Computing, 86, 105893.
A35: Mahmoudi, A., Deng, X., Javed, S. A., & Zhang, N. (2020). Sustainable supplier selection in megaprojects: grey ordinal priority approach. Business Strategy and the Environment, 30(1). 318-339

Sheet Example 1
ALL1: 1
ALL2: 4
ALL3: 3
ALL4: =SUM($B$6:$B$1000) -> 1
A5: Z | B5: 0.16 | D5: Index | E5: Weight | F5: Rank | H5: Expert | I5: Rank | J5: Criteria | K5: Rank | N5: E1
A6: W111 | B6: 0.2933333333 | C6: =($B$6-$B$8)*$AMD$6 -> 0.16 | D6: E1 | E6: 1 | F6: 1 | H6: E1 | I6: 1 | J6: P | K6: 1 | N6: P | O6: S | P6: G | Q6: F | AMC6: 11 | AMD6: 1 | AME6: 1
A7: W112 | B7: 0.05333333333 | C7: =$B$7*$AMD$7 -> 0.16 | D7: P | E7: 0.48 | F7: 1 | J7: S | K7: 2 | M7: A | N7: 1 | O7: 2 | P7: 3 | Q7: 2 | AMC7: 11 | AMD7: 3 | AME7: 3
A8: W113 | B8: 0.1333333333 | C8: =($B$8-$B$7)*$AMD$8 -> 0.16 | D8: S | E8: 0.24 | F8: 2 | J8: G | K8: 3 | M8: B | N8: 3 | O8: 3 | P8: 1 | Q8: 1 | AMC8: 11 | AMD8: 2 | AME8: 2
A9: W121 | B9: 0.06666666667 | C9: =($B$9-$B$10)*$AMD$9 -> 0.16 | D9: G | E9: 0.16 | F9: 3 | J9: F | K9: 4 | M9: C | N9: 2 | O9: 1 | P9: 2 | Q9: 3 | AMC9: 12 | AMD9: 4 | AME9: 2
A10: W122 | B10: 0.02666666667 | C10: =$B$10*$AMD$10 -> 0.16 | D10: F | E10: 0.12 | F10: 4 | AMC10: 12 | AMD10: 6 | AME10: 3
A11: W123 | B11: 0.1466666667 | C11: =($B$11-$B$9)*$AMD$11 -> 0.16 | D11: A | E11: 0.4111111111 | F11: 1 | AMC11: 12 | AMD11: 2 | AME11: 1
A12: W131 | B12: 0.01777777778 | C12: =$B$12*$AMD$12 -> 0.16 | D12: B | E12: 0.2511111111 | F12: 3 | AMC12: 13 | AMD12: 9 | AME12: 3
A13: W132 | B13: 0.09777777778 | C13: =($B$13-$B$14)*$AMD$13 -> 0.16 | D13: C | E13: 0.3377777778 | F13: 2 | AMC13: 13 | AMD13: 3 | AME13: 1
A14: W133 | B14: 0.04444444444 | C14: =($B$14-$B$12)*$AMD$14 -> 0.16 | AMC14: 13 | AMD14: 6 | AME14: 2
A15: W141 | B15: 0.03333333333 | C15: =($B$15-$B$17)*$AMD$15 -> 0.16 | AMC15: 14 | AMD15: 8 | AME15: 2
A16: W142 | B16: 0.07333333333 | C16: =($B$16-$B$15)*$AMD$16 -> 0.16 | AMC16: 14 | AMD16: 4 | AME16: 1
A17: W143 | B17: 0.01333333333 | C17: =$B$17*$AMD$17 -> 0.16 | AMC17: 14 | AMD17: 12 | AME17: 3

Sheet Example 2
ALL1: 3
ALL2: 3
ALL3: 3
ALL4: =SUM($B$6:$B$1000) -> 1
A5: Z | B5: 0.09917355372 | D5: Index | E5: Weight | F5: Rank | H5: Expert | I5: Rank | J5: Criteria | K5: Rank | N5: Y | Q5: X | T5: Z
A6: W111 | B6: 0.1818181818 | C6: =($B$6-$B$8)*$AMD$6 -> 0.09917355372 | D6: Y | E6: 0.4462809917 | F6: 1 | H6: Y | I6: 1 | J6: YS | K6: 1 | N6: S | O6: P | P6: F | Q6: S | R6: P | S6: F | T6: S | U6: P | V6: F | AMC6: 11 | AMD6: 1 | AME6: 1
A7: W112 | B7: 0.03305785124 | C7: =$B$7*$AMD$7 -> 0.09917355372 | D7: X | E7: 0.3719008264 | F7: 2 | H7: X | I7: 2 | J7: YP | M7: A | N7: 1 | O7: 3 | P7: 2 | Q7: 1 | R7: 3 | S7: 3 | T7: 1 | U7: 2 | V7: 3 | AMC7: 11 | AMD7: 3 | AME7: 3
A8: W113 | B8: 0.0826446281 | C8: =($B$8-$B$7)*$AMD$8 -> 0.09917355372 | D8: Z | E8: 0.1818181818 | F8: 3 | H8: Z | I8: 3 | J8: YF | K8: 2 | M8: B | N8: 3 | O8: 2 | P8: 3 | Q8: 3 | R8: 2 | S8: 1 | T8: 2 | U8: 3 | V8: 2 | AMC8: 11 | AMD8: 2 | AME8: 2
A9: W121 | B9: 0 | C9: missed | D9: S | E9: 0.4958677686 | F9: 1 | J9: XS | K9: 1 | M9: C | N9: 2 | O9: 1 | P9: 1 | Q9: 2 | R9: 1 | S9: 2 | T9: 3 | U9: 1 | V9: 1 | AMC9: 12 | AMD9: 0 | AME9: 3
A10: W122 | B10: 0 | C10: missed | D10: P | E10: 0.1818181818 | F10: 3 | J10: XP | K10: 1 | AMC10: 12 | AMD10: 0 | AME10: 2
A11: W123 | B11: 0 | C11: missed | D11: F | E11: 0.3223140496 | F11: 2 | J11: XF | K11: 2 | AMC11: 12 | AMD11: 0 | AME11: 1
A12: W131 | B12: 0.04132231405 | C12: =($B$12-$B$13)*$AMD$12 -> 0.09917355372 | D12: A | E12: 0.3893480257 | F12: 2 | J12: ZS | K12: 2 | AMC12: 13 | AMD12: 4 | AME12: 2
A13: W132 | B13: 0.01652892562 | C13: =$B$13*$AMD$13 -> 0.09917355372 | D13: B | E13: 0.1978879706 | F13: 3 | J13: ZP | K13: 3 | AMC13: 13 | AMD13: 6 | AME13: 3
A14: W133 | B14: 0.09090909091 | C14: =($B$14-$B$12)*$AMD$14 -> 0.09917355372 | D14: C | E14: 0.4127640037 | F14: 1 | J14: ZF | K14: 1 | AMC14: 13 | AMD14: 2 | AME14: 1
A15: W211 | B15: 0.09090909091 | C15: =($B$15-$B$17)*$AMD$15 -> 0.09917355372 | AMC15: 21 | AMD15: 2 | AME15: 1
A16: W212 | B16: 0.01652892562 | C16: =$B$16*$AMD$16 -> 0.09917355372 | AMC16: 21 | AMD16: 6 | AME16: 3
A17: W213 | B17: 0.04132231405 | C17: =($B$17-$B$16)*$AMD$17 -> 0.09917355372 | AMC17: 21 | AMD17: 4 | AME17: 2
A18: W221 | B18: 0.01652892562 | C18: =$B$18*$AMD$18 -> 0.09917355372 | AMC18: 22 | AMD18: 6 | AME18: 3
A19: W222 | B19: 0.04132231405 | C19: =($B$19-$B$18)*$AMD$19 -> 0.09917355372 | AMC19: 22 | AMD19: 4 | AME19: 2
A20: W223 | B20: 0.09090909091 | C20: =($B$20-$B$19)*$AMD$20 -> 0.09917355372 | AMC20: 22 | AMD20: 2 | AME20: 1
A21: W231 | B21: 0.00826446281 | C21: =$B$21*$AMD$21 -> 0.09917355372 | AMC21: 23 | AMD21: 12 | AME21: 3
A22: W232 | B22: 0.04545454545 | C22: =($B$22-$B$23)*$AMD$22 -> 0.09917355372 | AMC22: 23 | AMD22: 4 | AME22: 1
A23: W233 | B23: 0.02066115702 | C23: =($B$23-$B$21)*$AMD$23 -> 0.09917355372 | AMC23: 23 | AMD23: 8 | AME23: 2
A24: W311 | B24: 0.0303030303 | C24: =($B$24-$B$25)*$AMD$24 -> 0.09917355372 | AMC24: 31 | AMD24: 6 | AME24: 1
A25: W312 | B25: 0.01377410468 | C25: =($B$25-$B$26)*$AMD$25 -> 0.09917355372 | AMC25: 31 | AMD25: 12 | AME25: 2
A26: W313 | B26: 0.005509641873 | C26: =$B$26*$AMD$26 -> 0.09917355372 | AMC26: 31 | AMD26: 18 | AME26: 3
A27: W321 | B27: 0.009182736455 | C27: =($B$27-$B$28)*$AMD$27 -> 0.09917355372 | AMC27: 32 | AMD27: 18 | AME27: 2
A28: W322 | B28: 0.003673094582 | C28: =$B$28*$AMD$28 -> 0.09917355372 | AMC28: 32 | AMD28: 27 | AME28: 3
A29: W323 | B29: 0.0202020202 | C29: =($B$29-$B$27)*$AMD$29 -> 0.09917355372 | AMC29: 32 | AMD29: 9 | AME29: 1
A30: W331 | B30: 0.01101928375 | C30: =$B$30*$AMD$30 -> 0.09917355372 | AMC30: 33 | AMD30: 9 | AME30: 3
A31: W332 | B31: 0.02754820937 | C31: =($B$31-$B$30)*$AMD$31 -> 0.09917355372 | AMC31: 33 | AMD31: 6 | AME31: 2
A32: W333 | B32: 0.06060606061 | C32: =($B$32-$B$31)*$AMD$32 -> 0.09917355372 | AMC32: 33 | AMD32: 3 | AME32: 1

Sheet Example 3
ALL1: 1
ALL2: 1
ALL3: 5
ALL4: =SUM($B$6:$B$1000) -> 1
A5: Z | B5: 0.2 | D5: Index | E5: Weight | F5: Rank | H5: Expert | I5: Rank | J5: Criteria | K5: Rank | N5: E1
A6: W111 | B6: 0.4566666667 | C6: =($B$6-$B$7)*$AMD$6 -> 0.2 | D6: E1 | E6: 1 | F6: 1 | H6: E1 | I6: 1 | J6: E1C1 | K6: 1 | N6: C1 | AMC6: 11 | AMD6: 1 | AME6: 1
A7: W112 | B7: 0.2566666667 | C7: =($B$7-$B$8)*$AMD$7 -> 0.2 | D7: C1 | E7: 1 | F7: 1 | M7: Price | N7: 1 | AMC7: 11 | AMD7: 2 | AME7: 2
A8: W113 | B8: 0.1566666667 | C8: =($B$8-$B$9)*$AMD$8 -> 0.2 | D8: Price | E8: 0.4098360656 | F8: 1 | M8: Quality | N8: 2 | AMC8: 11 | AMD8: 3 | AME8: 3
A9: W114 | B9: 0.09 | C9: =($B$9-$B$10)*$AMD$9 -> 0.2 | D9: Quality | E9: 0.2131147541 | F9: 2 | M9: Safety | N9: 2 | AMC9: 11 | AMD9: 4 | AME9: 4
A10: W115 | B10: 0.04 | C10: =$B$10*$AMD$10 -> 0.2 | D10: Safety | E10: 0.2131147541 | F10: 2 | M10: Comfort | N10: 4 | AMC10: 11 | AMD10: 5 | AME10: 5
D11: Comfort | E11: 0.1147540984 | F11: 4 | M11: Style | N11: 5
D12: Style | E12: 0.04918032787 | F12: 5

Sheet OPA Solver v1.00
